bitfinex/quotes_BTCUSD_20250313
["timestamp","ask_amount","ask_price","bid_price","bid_amount"]
[1741854780485,0.5722401,82892.0,82891.0,0.0051693]
[1741854781891,0.5722401,82892.0,82891.0,0.3085133]
[1741854781892,0.0189001,82892.0,82891.0,0.3085133]
[1741854782098,0.0003386,82902.0,82901.0,0.303313]
[1741854782303,0.0003386,82902.0,82901.0,0.31785385]
[1741854782681,0.0124006,82902.0,82901.0,0.025]
[1741854782952,0.2536486,82902.0,82901.0,0.05]
[1741854783131,0.0003386,82902.0,82901.0,0.05]
[1741854783541,0.0003386,82902.0,82901.0,0.062062]
[1741854783720,0.0003386,82902.0,82901.0,0.05]
[1741854784040,0.0003386,82902.0,82901.0,0.303313]
[1741854784272,0.0003386,82902.0,82901.0,0.05]
[1741854784695,0.0003386,82902.0,82901.0,0.306313]
[1741854785106,0.0003386,82902.0,82901.0,0.32085385]
[1741854787311,0.0003386,82902.0,82901.0,1.82085385]
[1741854788256,0.0003386,82902.0,82901.0,1.81785385]
[1741854789373,0.0003386,82902.0,82901.0,1.82185385]
[1741854790516,0.0003386,82902.0,82901.0,0.32185385]
[1741854790916,0.0003386,82902.0,82901.0,1.82185385]
[1741854791649,0.0003386,82902.0,82901.0,1.97293385]
[1741854793160,0.0003386,82902.0,82901.0,2.16867604]
[1741854793359,6e-07,82902.0,82901.0,2.16867604]
[1741854793725,6e-07,82902.0,82901.0,2.21517604]
[1741854794307,0.0003386,82907.0,82906.0,0.278298]
[1741854794508,0.0003386,82907.0,82906.0,0.39824019]
[1741854794805,0.0003386,82907.0,82906.0,0.41278104]
[1741854795139,0.0003386,82907.0,82906.0,1.93778104]
[1741854795731,6e-07,82907.0,82906.0,1.93778104]
[1741854795996,4.223e-05,82907.0,82906.0,1.93778104]
[1741854796280,4.223e-05,82907.0,82906.0,1.94378104]
[1741854796618,2.3e-07,82914.0,82913.0,0.06206]
[1741854796816,2.3e-07,82914.0,82913.0,1.09080879]
[1741854797018,2.3e-07,82914.0,82913.0,1.08960304]
[1741854797884,2.3e-07,82914.0,82913.0,1.10170665]
[1741854798256,2.3e-07,82914.0,82913.0,1.25210665]
[1741854798644,2.3e-07,82914.0,82913.0,1.27634105]
[1741854799415,2.3e-07,82914.0,82913.0,2.78234105]
[1741854799585,2.3e-07,82914.0,82913.0,2.77023744]
[1741854800090,2.3e-07,82914.0,82913.0,1.27019744]
[1741854800323,2.3e-07,82914.0,82913.0,1.24519744]
[1741854800699,2.3e-07,82914.0,82913.0,1.27019744]
[1741854800855,2.3e-07,82914.0,82913.0,0.8582544]
[1741854801059,2.3e-07,82914.0,82913.0,1.0087344]
[1741854801334,2.3e-07,82914.0,82913.0,0.87279525]
[1741854801772,2.3e-07,82914.0,82913.0,1.01727525]
[1741854801970,2.3e-07,82914.0,82913.0,1.01744445]
[1741854802174,2.3e-07,82914.0,82913.0,1.02144445]
[1741854802360,2.3e-07,82914.0,82913.0,0.7951292]
[1741854802565,2.3e-07,82914.0,82913.0,0.9418492]
[1741854802765,2.3e-07,82914.0,82913.0,0.9668492]
[1741854802969,2.3e-07,82914.0,82913.0,0.8201292]
[1741854804264,0.01206023,82914.0,82913.0,0.0041692]
[1741854807379,0.03095663,82914.0,82913.0,0.0041692]
[1741854809151,0.33095663,82914.0,82913.0,0.0041692]
[1741854810689,0.41365663,82914.0,82913.0,0.0041692]
[1741854811642,0.41365663,82914.0,82913.0,0.0001692]
[1741854812230,0.634137,82893.0,82886.0,0.025]
[1741854813060,0.65303856,82893.0,82886.0,0.025]
[1741854813543,0.65303856,82893.0,82892.0,0.00373805]
[1741854814082,0.634137,82893.0,82892.0,0.00373805]
[1741854814987,0.634137,82893.0,82892.0,0.00273805]
[1741854815417,0.635137,82893.0,82892.0,0.00273805]
[1741854815769,0.634137,82893.0,82892.0,0.00273805]
[1741854816755,0.635137,82893.0,82892.0,0.00273805]
[1741854817376,0.65404012,82893.0,82892.0,0.00273805]
[1741854817788,0.66322274,82893.0,82892.0,0.00273805]
[1741854819769,0.553387,82877.0,82876.0,0.0001693]
[1741854819954,0.635987,82877.0,82876.0,0.0001693]
[1741854820490,0.65489094,82877.0,82876.0,0.0001693]
[1741854821123,0.57229094,82877.0,82876.0,0.00021093]
[1741854821328,0.31890394,82877.0,82876.0,0.00021093]
[1741854821722,0.32090394,82877.0,82876.0,0.01227693]
[1741854821925,0.32090394,82877.0,82876.0,0.00021093]
[1741854822345,0.31890394,82877.0,82876.0,0.00021093]
[1741854822544,0.32090394,82877.0,82876.0,0.00021093]
[1741854823064,0.31890394,82877.0,82876.0,0.00021093]
[1741854823283,0.33073862,82877.0,82876.0,0.00021093]
[1741854823482,0.31183468,82877.0,82876.0,0.00021093]
[1741854824367,0.32390068,82877.0,82876.0,0.00021093]
[1741854826724,0.32536318,82877.0,82876.0,0.00021093]
[1741854828166,0.34426813,82877.0,82876.0,0.00021093]
[1741854830567,0.33220213,82877.0,82876.0,0.00021093]
[1741854831369,0.34426813,82877.0,82876.0,0.00021093]
[1741854832529,0.58558913,82877.0,82876.0,0.00021093]
[1741854836757,0.03220213,82877.0,82876.0,0.03727693]
[1741854836920,0.03220213,82877.0,82876.0,0.06227693]
[1741854837123,0.01329718,82877.0,82876.0,0.06227693]
[1741854838986,0.01329718,82877.0,82876.0,0.06427693]
[1741854839204,0.26668418,82877.0,82876.0,0.00221093]
[1741854839603,0.02536318,82877.0,82876.0,0.00221093]
[1741854839986,0.04426694,82877.0,82876.0,0.00221093]
[1741854840185,0.04426694,82877.0,82876.0,0.02721093]
[1741854840380,0.04426694,82877.0,82876.0,0.00221093]
[1741854840381,0.34426694,82877.0,82876.0,0.00221093]
[1741854841263,0.03220094,82877.0,82876.0,0.00221093]
[1741854841461,0.03220094,82877.0,82876.0,0.01427693]
[1741854841705,0.03220094,82877.0,82876.0,0.06427693]
[1741854841907,0.03220094,82877.0,82876.0,0.03927693]
[1741854842288,0.03220094,82877.0,82876.0,0.02721093]
[1741854842492,0.03220094,82877.0,82876.0,0.03927693]
[1741854843645,0.03220094,82877.0,82876.0,0.02721093]
[1741854844051,0.34426694,82877.0,82876.0,0.00221093]
[1741854844556,0.34426694,82877.0,82876.0,0.02721093]
[1741854845419,0.03220094,82877.0,82876.0,0.26853493]
[1741854845618,0.03220094,82877.0,82876.0,0.02721093]
[1741854846244,0.03220094,82877.0,82876.0,0.03927693]
[1741854847014,0.33220094,82877.0,82876.0,0.02721093]
[1741854847151,0.34426694,82877.0,82876.0,0.02721093]
[1741854847349,0.33220094,82877.0,82876.0,0.02721093]
[1741854847678,0.34426694,82877.0,82876.0,0.02721093]
[1741854848671,0.34426694,82877.0,82876.0,0.00221093]
[1741854848852,0.34426694,82877.0,82876.0,0.02721093]
[1741854849456,0.34426694,82877.0,82876.0,0.00221093]
[1741854850333,0.01329718,82877.0,82876.0,0.00221093]
[1741854850502,0.01329718,82877.0,82876.0,0.01427693]
[1741854850738,0.01329718,82877.0,82876.0,0.06427693]
[1741854851561,0.01329718,82877.0,82876.0,0.06227693]
[1741854851768,0.01329718,82877.0,82876.0,0.12591778]
[1741854851972,0.01329718,82877.0,82876.0,0.11137693]
[1741854852787,0.01329718,82877.0,82876.0,0.11337693]
[1741854852977,0.03219911,82877.0,82876.0,0.11337693]
[1741854853817,0.03219911,82877.0,82876.0,0.10131093]
[1741854854477,0.03219911,82877.0,82876.0,0.11337693]
[1741854855002,0.03219911,82877.0,82876.0,0.11137693]
[1741854855823,0.03219911,82877.0,82876.0,0.11437693]
[1741854856583,4.3e-07,82877.0,82876.0,0.13012425]
[1741854856802,4.3e-07,82877.0,82876.0,0.36030425]
[1741854857005,0.3,82896.0,82890.0,0.303347]
[1741854857364,0.3,82894.0,82890.0,0.303347]
[1741854858285,0.312063,82894.0,82890.0,0.05]
[1741854858512,0.241276,82893.0,82890.0,0.05]
[1741854858934,0.541271,82895.0,82890.0,0.05]
[1741854859090,0.0123167,82891.0,82890.0,0.05]
[1741854859922,0.03121567,82891.0,82890.0,0.05]
[1741854862690,0.03121567,82891.0,82890.0,0.062064]
[1741854864462,0.03121567,82891.0,82890.0,0.05]
[1741854864666,0.03121567,82891.0,82889.0,0.05]
[1741854864667,0.253347,82890.0,82889.0,0.05]
[1741854864892,0.253347,82890.0,82879.0,0.253379]
[1741854864893,0.012064,82887.0,82884.0,0.17392]
[1741854865245,0.012064,82887.0,82886.0,0.025]
[1741854865426,0.012065,82884.0,82883.0,0.025]
[1741854865634,0.012065,82884.0,82883.0,0.05]
[1741854865979,0.253366,82884.0,82883.0,0.05]
[1741854866178,0.253364,82885.0,82883.0,0.05]
[1741854866523,0.253364,82885.0,82884.0,0.025]
[1741854866702,0.012065,82884.0,82883.0,0.025]
[1741854866911,0.241295,82886.0,82885.0,0.025]
[1741854867280,0.241295,82886.0,82885.0,0.05]
[1741854867687,0.241295,82886.0,82885.0,0.025]
[1741854867923,0.012064,82887.0,82886.0,0.025]
[1741854868531,0.253353,82888.0,82883.0,0.039065]
[1741854868731,0.03121567,82891.0,82883.0,0.039065]
[1741854868732,0.27249567,82891.0,82890.0,0.025]
[1741854868933,0.03121567,82891.0,82890.0,0.025]
[1741854869410,0.04327967,82891.0,82890.0,0.025]
[1741854870352,0.03121567,82891.0,82890.0,0.025]
[1741854870568,0.03121567,82891.0,82890.0,0.037064]
[1741854870996,0.03121567,82891.0,82890.0,0.05]
[1741854871606,0.04327967,82891.0,82890.0,0.05]
[1741854872852,0.04327967,82891.0,82874.0,0.25586885]
[1741854872853,0.012064,82888.0,82887.0,0.025]
[1741854873031,0.253353,82888.0,82887.0,0.05]
[1741854873372,0.253366,82884.0,82883.0,0.025]
[1741854873554,0.253366,82884.0,82883.0,0.05]
[1741854873920,0.012064,82887.0,82886.0,0.025]
[1741854874746,0.012064,82887.0,82883.0,0.05]
[1741854874747,0.253366,82884.0,82883.0,0.05]
[1741854875034,0.241295,82886.0,82885.0,0.025]
[1741854875242,0.253359,82886.0,82885.0,0.025]
[1741854877227,0.253359,82887.0,82886.0,0.025]
[1741854877428,0.012064,82888.0,82886.0,0.025]
[1741854877557,0.241278,82892.0,82887.0,0.025]
[1741854877558,0.03121567,82891.0,82887.0,0.025]
[1741854877758,0.241283,82890.0,82887.0,0.025]
[1741854877960,0.241283,82890.0,82889.0,0.025]
[1741854878188,0.253347,82890.0,82889.0,0.025]
[1741854879203,0.241289,82888.0,82887.0,0.025]
[1741854879600,0.241289,82888.0,82887.0,0.05]
[1741854879806,0.241289,82888.0,82887.0,0.025]
[1741854880010,0.253353,82888.0,82887.0,0.025]
[1741854881116,0.253353,82888.0,82885.0,0.001]
[1741854881117,0.253359,82886.0,82885.0,0.026]
[1741854881675,0.253353,82888.0,82885.0,0.026]
[1741854881897,0.253358,82887.0,82885.0,0.026]
[1741854882463,0.3,82889.0,82885.0,0.026]
[1741854882639,0.3,82889.0,82888.0,0.025]
[1741854883263,0.241294,82887.0,82886.0,0.025]
[1741854883479,0.241294,82887.0,82885.0,0.026]
[1741854883684,0.241294,82887.0,82886.0,0.025]
[1741854883889,0.253358,82887.0,82886.0,0.025]
[1741854884644,0.253355,82888.0,82887.0,0.025]
[1741854885363,0.3,82889.0,82887.0,0.025]
[1741854885995,0.3,82889.0,82888.0,0.025]
[1741854887975,0.3,82889.0,82888.0,0.037064]
[1741854888193,0.31890049,82889.0,82888.0,0.038064]
[1741854889007,0.31890049,82889.0,82888.0,0.279353]
[1741854889209,0.31890049,82889.0,82888.0,0.026]
[1741854890927,0.31890049,82889.0,82888.0,0.279353]
[1741854892032,0.31890049,82889.0,82888.0,0.026]
[1741854892433,0.33096449,82889.0,82888.0,0.026]
[1741854895482,0.31890049,82889.0,82888.0,0.026]
[1741854896167,0.31923909,82889.0,82888.0,0.026]
[1741854897161,0.31923909,82889.0,82888.0,0.038064]
[1741854898381,0.31923909,82889.0,82888.0,0.026]
[1741854899754,0.33130309,82889.0,82888.0,0.026]
[1741854901061,0.31923909,82889.0,82888.0,0.038064]
[1741854901280,0.31923909,82889.0,82888.0,0.026]
[1741854905453,0.33130309,82889.0,82888.0,0.026]
[1741854905924,0.57258909,82889.0,82888.0,0.026]
[1741854906097,0.57258909,82889.0,82888.0,0.001]
[1741854906257,0.57258909,82889.0,82888.0,0.026]
[1741854906656,0.57258909,82889.0,82888.0,0.001]
[1741854906864,0.64978909,82889.0,82888.0,0.001]
[1741854907066,0.6308886,82889.0,82888.0,0.001]
[1741854907900,0.553383,82878.0,82877.0,0.0001693]
[1741854909979,0.5722849,82878.0,82877.0,0.0001693]
[1741854911199,0.5722849,82878.0,82877.0,0.0021693]
[1741854911484,0.6494849,82878.0,82877.0,0.0021693]
[1741854911887,0.5722849,82878.0,82877.0,0.0021693]
[1741854912100,0.5722849,82878.0,82877.0,0.0001693]
[1741854912310,0.312066,82875.0,82874.0,0.02038023]
[1741854912803,0.312066,82875.0,82874.0,0.00812151]
[1741854913856,0.33097054,82875.0,82874.0,0.00812151]
[1741854914434,0.3,82872.0,82871.0,0.00812151]
[1741854915804,0.01890454,82875.0,82872.0,0.253402]
[1741854916003,0.01890454,82875.0,82874.0,0.00812151]
[1741854916319,0.03097054,82875.0,82874.0,0.00812151]
[1741854916688,0.01890454,82875.0,82874.0,0.27445151]
[1741854916889,6.021e-05,82878.0,82877.0,0.36420851]
[1741854918180,0.00106021,82878.0,82877.0,0.36420851]
[1741854918575,6.021e-05,82878.0,82877.0,0.36420851]
[1741854918733,6.021e-05,82878.0,82877.0,1.86420851]
[1741854918939,6.021e-05,82878.0,82877.0,1.86520851]
[1741854919367,6.021e-05,82878.0,82877.0,1.86720851]
[1741854919946,0.01896246,82878.0,82877.0,1.86737781]
[1741854920371,0.01896246,82878.0,82877.0,1.86637781]
[1741854920773,0.01896246,82878.0,82877.0,1.86837781]
[1741854921315,0.01896246,82878.0,82877.0,0.36837781]
[1741854924865,4.6e-07,82878.0,82877.0,0.55176085]
[1741854925143,0.0003386,82889.0,82888.0,0.41237451]
[1741854925699,0.0003386,82889.0,82888.0,0.42691536]
[1741854925920,6e-07,82889.0,82888.0,0.54685755]
[1741854927336,2e-07,82891.0,82888.0,2.04685755]
[1741854927529,2e-07,82891.0,82890.0,0.42400936]
[1741854927733,2e-07,82891.0,82890.0,0.54395155]
[1741854928328,0.0003384,82913.0,82912.0,0.28640051]
[1741854928555,0.0003384,82913.0,82912.0,0.55868051]
[1741854928739,0.0003384,82913.0,82912.0,0.69316355]
[1741854929711,0.00075503,82913.0,82912.0,0.69316355]
[1741854931115,0.00075503,82913.0,82912.0,0.69616355]
[1741854931663,0.00075503,82913.0,82912.0,0.69816355]
[1741854931835,0.00075503,82913.0,82912.0,0.69316355]
[1741854932211,0.00075503,82913.0,82912.0,0.70116355]
[1741854933445,0.00075503,82913.0,82912.0,0.69716355]
[1741854934237,0.00075503,82913.0,82912.0,0.69316355]
[1741854934433,0.00075503,82913.0,82912.0,0.69816355]
[1741854934704,0.00075503,82913.0,82912.0,0.48814051]
[1741854935139,0.00075503,82913.0,82912.0,0.62262355]
[1741854935931,0.00075503,82913.0,82912.0,0.61862355]
[1741854936351,0.00075503,82913.0,82912.0,0.62462355]
[1741854936780,0.00075503,82913.0,82912.0,0.61362355]
[1741854937199,0.00075503,82913.0,82912.0,0.61962355]
[1741854937800,0.00075503,82913.0,82912.0,0.61362355]
[1741854938221,0.00075503,82913.0,82912.0,0.62562355]
[1741854938561,0.00075503,82913.0,82912.0,0.61962355]
[1741854938756,0.00075503,82913.0,82912.0,0.33950051]
[1741854938930,0.00075503,82913.0,82912.0,0.24988151]
[1741854939336,0.0047589,82913.0,82912.0,0.23782151]
[1741854939519,0.00075503,82913.0,82912.0,0.24988151]
[1741854939930,0.00075503,82913.0,82912.0,0.24388151]
[1741854940129,0.00075503,82913.0,82912.0,0.24288151]
[1741854940720,0.00075503,82913.0,82912.0,0.23788151]
[1741854941328,0.00075503,82913.0,82912.0,0.19078151]
[1741854941539,0.00473495,82913.0,82912.0,0.19578151]
[1741854941734,0.00075503,82913.0,82912.0,0.20198746]
[1741854944213,3e-08,82913.0,82912.0,0.4593705]
[1741854944415,3e-08,82913.0,82912.0,0.45816455]
[1741854944616,3e-08,82913.0,82912.0,1.95816455]
[1741854945420,3e-08,82913.0,82912.0,1.95316455]
[1741854945627,3e-08,82913.0,82912.0,1.95916455]
[1741854946166,3e-08,82913.0,82912.0,1.95316455]
[1741854946322,3e-08,82913.0,82912.0,1.95916455]
[1741854946887,3e-08,82913.0,82912.0,1.95416455]
[1741854947198,3e-08,82913.0,82912.0,1.95916455]
[1741854947796,3e-08,82913.0,82912.0,1.95416455]
[1741854948005,3e-08,82913.0,82912.0,1.96016455]
[1741854950181,3e-08,82913.0,82912.0,1.9456237]
[1741854952401,3e-08,82913.0,82912.0,1.8694237]
[1741854955019,3e-08,82913.0,82912.0,1.869593]
[1741854955964,0.00033863,82913.0,82912.0,1.869593]
[1741854956164,0.00033863,82913.0,82912.0,1.88413385]
[1741854956372,6.3e-07,82913.0,82912.0,1.88413385]
[1741854958296,6.3e-07,82913.0,82912.0,1.869593]
[1741854961237,6.3e-07,82913.0,82912.0,1.88413385]
[1741854961460,0.0812,82941.0,82912.0,1.88413385]
[1741854961461,0.3,82959.0,82948.0,0.02017651]
[1741854961686,0.00092496,82949.0,82948.0,0.28629051]
[1741854962979,0.00092496,82949.0,82948.0,0.28729051]
[1741854963920,0.00092496,82949.0,82948.0,0.28929051]
[1741854964134,0.00092496,82949.0,82948.0,0.28829051]
[1741854964557,0.00092496,82949.0,82948.0,0.28929051]
[1741854964762,0.00092496,82949.0,82948.0,0.28829051]
[1741854965059,0.00092496,82949.0,82948.0,0.29029051]
[1741854967222,0.00092496,82949.0,82948.0,0.03712151]
[1741854967609,0.00683465,82949.0,82948.0,0.29029051]
[1741854967809,0.00092496,82949.0,82948.0,0.29029051]
[1741854968510,0.00126356,82949.0,82948.0,0.29029051]
[1741854972322,0.00126356,82949.0,82948.0,0.03712151]
[1741854972524,0.00126356,82949.0,82948.0,0.01212151]
[1741854972727,0.00778815,82949.0,82948.0,0.01212151]
[1741854973306,0.09964315,82949.0,82948.0,0.01212151]
[1741854973504,0.08758815,82949.0,82948.0,0.01212151]
[1741854974741,0.08758815,82949.0,82948.0,0.00812151]
[1741854975979,0.08758815,82949.0,82943.0,0.012056]
[1741854975980,0.253182,82944.0,82943.0,0.00812151]
[1741854976202,0.25739585,82944.0,82943.0,0.00812151]
[1741854976325,0.25970863,82944.0,82943.0,0.00812151]
[1741854976524,0.00652663,82944.0,82943.0,0.00812151]
[1741854976762,0.00652663,82944.0,82943.0,0.02017751]
[1741854976975,0.00652663,82944.0,82943.0,0.04517751]
[1741854977390,0.00126356,82949.0,82948.0,0.28629051]
[1741854978101,0.00126356,82949.0,82948.0,1.78629051]
[1741854978672,0.00126356,82949.0,82948.0,1.78829051]
[1741854979984,0.00126356,82949.0,82948.0,1.87009051]
[1741854980579,0.00126356,82949.0,82948.0,1.87209051]
[1741854981008,0.00126356,82949.0,82948.0,0.37009051]
[1741854981221,0.00126356,82949.0,82948.0,0.5418327]
[1741854982084,0.00126356,82949.0,82948.0,0.482489]
[1741854982268,0.00126356,82949.0,82948.0,0.29129051]
[1741854982617,0.00126356,82949.0,82948.0,0.01]
[1741854982761,0.01331856,82949.0,82948.0,0.01312151]
[1741854982966,0.63403056,82949.0,82948.0,0.005]
[1741854983514,0.68043056,82949.0,82948.0,0.005]
[1741854983996,0.553191,82941.0,82940.0,0.00812151]
[1741854984136,0.3,82941.0,82940.0,0.04517751]
[1741854984342,0.3,82941.0,82940.0,0.28631551]
[1741854984544,0.3,82941.0,82940.0,0.03312151]
[1741854984994,0.312056,82941.0,82940.0,0.00812151]
[1741854985349,0.312056,82941.0,82940.0,0.01012151]
[1741854985551,0.3,82941.0,82940.0,0.01012151]
[1741854985753,0.3188898,82941.0,82940.0,0.04717751]
[1741854985958,0.3188898,82941.0,82940.0,0.01012151]
[1741854986231,0.3309458,82941.0,82940.0,0.01012151]
[1741854986725,0.5720808,82941.0,82940.0,0.01012151]
[1741854986896,0.5720808,82941.0,82940.0,0.01312151]
[1741854989326,0.5720808,82941.0,82940.0,0.01112151]
[1741854989547,0.5720808,82941.0,82940.0,0.01312151]
[1741854989767,0.0188898,82941.0,82940.0,0.02517751]
[1741854989968,0.0188898,82941.0,82940.0,0.29131551]
[1741854990179,0.0188898,82941.0,82940.0,0.28831551]
[1741854990561,0.0188898,82941.0,82940.0,0.29031551]
[1741854991086,0.0188898,82941.0,82940.0,0.28831551]
[1741854991244,0.0188898,82941.0,82940.0,0.29031551]
[1741854991469,0.0188898,82941.0,82940.0,0.04917751]
[1741854991897,0.0188898,82941.0,82940.0,0.03712151]
[1741854992321,0.2720808,82941.0,82940.0,0.004]
[1741854992522,0.2720808,82941.0,82940.0,0.01212151]
[1741854992927,0.0188898,82941.0,82940.0,0.29031551]
[1741854993122,0.0188898,82941.0,82940.0,0.01212151]
[1741854993299,0.0309458,82941.0,82940.0,0.01212151]
[1741854994481,0.0188898,82941.0,82940.0,0.01212151]
[1741854996448,0.0309458,82941.0,82940.0,0.01212151]
[1741854997334,0.0188898,82941.0,82940.0,0.04917751]
[1741854997916,0.0188898,82941.0,82940.0,0.03712151]
[1741854998810,0.0188898,82941.0,82940.0,0.03512151]
[1741854999217,0.0188898,82941.0,82940.0,0.03912151]
[1741854999423,0.0188898,82941.0,82940.0,0.03712151]
[1741855000264,0.0188898,82941.0,82940.0,0.04917751]
[1741855000443,0.0188898,82941.0,82940.0,0.05417751]
[1741855003546,0.0192284,82941.0,82940.0,0.05417751]
[1741855004100,0.0192284,82941.0,82940.0,0.05538311]
[1741855004218,0.0003386,82941.0,82940.0,0.20090311]
[1741855004901,0.0003386,82941.0,82940.0,0.3208453]
[1741855005100,0.0003386,82941.0,82940.0,1.8949397]
[1741855005420,0.0003386,82941.0,82940.0,1.8909397]
[1741855005859,0.0003386,82941.0,82940.0,1.8949397]
[1741855006038,0.0003386,82941.0,82940.0,1.8909397]
[1741855006435,0.0003386,82941.0,82940.0,1.8919397]
[1741855006593,0.0003386,82941.0,82940.0,1.8969397]
[1741855007182,0.0003386,82941.0,82940.0,1.77199751]
[1741855007538,0.0003386,82941.0,82940.0,1.77799751]
[1741855008007,0.0003386,82941.0,82940.0,1.91248055]
[1741855008197,6e-07,82941.0,82940.0,1.91248055]
[1741855009260,6e-07,82941.0,82940.0,1.90648055]
[1741855009465,6e-07,82941.0,82940.0,1.91248055]
[1741855010109,6e-07,82941.0,82940.0,1.90648055]
[1741855010501,6e-07,82941.0,82940.0,1.91248055]
[1741855011101,6e-07,82941.0,82940.0,1.90648055]
[1741855011311,6e-07,82941.0,82940.0,1.91248055]
[1741855012634,6e-07,82941.0,82940.0,1.96078055]
[1741855014088,0.0125602,82954.0,82953.0,0.41407651]
[1741855014283,0.0125602,82954.0,82953.0,0.5340187]
[1741855014720,0.0125602,82954.0,82953.0,2.0340187]
[1741855015394,0.0125602,82954.0,82953.0,2.0400187]
[1741855015985,0.0125602,82954.0,82953.0,2.0450187]
[1741855018354,0.0125602,82954.0,82953.0,0.31977651]
[1741855018593,0.0125602,82954.0,82953.0,0.482135]
[1741855018793,0.0125602,82954.0,82953.0,0.49025651]
[1741855019179,0.0125602,82954.0,82953.0,0.44275651]
[1741855020227,0.0125602,82954.0,82953.0,0.43675651]
[1741855020635,0.0125602,82954.0,82953.0,0.44075651]
[1741855021045,0.0125602,82954.0,82953.0,0.43675651]
[1741855021241,0.0125602,82954.0,82953.0,0.44075651]
[1741855021421,0.0125602,82954.0,82953.0,0.43575651]
[1741855021625,0.0125602,82954.0,82953.0,0.43875651]
[1741855022874,0.0125602,82954.0,82953.0,0.29327651]
[1741855023007,0.2657112,82954.0,82953.0,0.04012151]
[1741855023224,0.0125602,82954.0,82953.0,0.04012151]
[1741855023433,0.0125602,82954.0,82953.0,0.05217651]
[1741855024351,0.0125602,82954.0,82953.0,0.04012151]
[1741855024579,0.0125602,82954.0,82953.0,0.05217651]
[1741855024941,0.0125602,82954.0,82953.0,0.04012151]
[1741855025178,0.0125602,82954.0,82953.0,0.05217651]
[1741855025492,0.0125602,82954.0,82953.0,0.04012151]
[1741855026135,0.0246142,82954.0,82953.0,0.01512151]
[1741855026341,0.0125602,82954.0,82953.0,0.04012151]
[1741855026491,0.03144616,82954.0,82953.0,0.04012151]
[1741855026704,0.03178476,82954.0,82953.0,0.01512151]
[1741855027044,0.03178476,82954.0,82953.0,0.04012151]
[1741855027248,0.03178476,82954.0,82953.0,0.01512151]
[1741855027449,0.27288176,82954.0,82953.0,0.01512151]
[1741855027652,0.03178476,82954.0,82953.0,0.04012151]
[1741855029004,0.03178476,82954.0,82953.0,0.05217651]
[1741855029244,0.03178476,82954.0,82953.0,0.04012151]
[1741855029899,0.03178476,82954.0,82953.0,0.05217651]
[1741855033477,0.03178476,82954.0,82953.0,1.55217651]
[1741855033704,0.0128988,82954.0,82953.0,1.59747651]
[1741855034223,0.0128988,82954.0,82953.0,1.7174187]
[1741855034433,0.0128988,82954.0,82953.0,1.7104187]
[1741855034677,0.0128988,82954.0,82953.0,0.09447651]
[1741855034991,0.0128988,82954.0,82953.0,0.09747651]
[1741855035195,0.0128988,82954.0,82953.0,0.09047651]
[1741855035398,0.0128988,82954.0,82953.0,0.09547651]
[1741855035575,0.0128988,82954.0,82953.0,0.232795]
[1741855035775,0.0128988,82954.0,82953.0,0.03812151]
[1741855036805,0.0249528,82954.0,82953.0,0.01912151]
[1741855037117,0.0128988,82954.0,82953.0,0.01912151]
[1741855037331,0.0128988,82954.0,82951.0,0.0001693]
[1741855037332,0.388555,82952.0,82951.0,0.0001693]
[1741855038341,0.437155,82952.0,82951.0,0.0001693]
[1741855038909,0.47669585,82952.0,82951.0,3e-07]
[1741855039325,0.45169585,82952.0,82951.0,0.0040003]
[1741855039454,0.47669585,82952.0,82951.0,3e-07]
[1741855040076,0.45169585,82952.0,82951.0,3e-07]
[1741855040895,0.45369585,82952.0,82951.0,3e-07]
[1741855041111,0.45869585,82952.0,82951.0,3e-07]
[1741855041439,0.442155,82952.0,82951.0,3e-07]
[1741855041572,0.447155,82952.0,82951.0,3e-07]
[1741855041778,0.592635,82952.0,82951.0,3e-07]
[1741855042582,0.327603,82952.0,82951.0,3e-07]
[1741855042783,0.339658,82952.0,82951.0,3e-07]
[1741855043024,0.639658,82952.0,82951.0,3e-07]
[1741855043428,0.634658,82952.0,82951.0,3e-07]
[1741855043589,0.636658,82952.0,82951.0,3e-07]
[1741855043996,0.631658,82952.0,82951.0,3e-07]
[1741855044421,0.633658,82952.0,82951.0,3e-07]
[1741855044857,0.635658,82952.0,82951.0,3e-07]
[1741855045043,0.639658,82952.0,82951.0,3e-07]
[1741855045484,0.638529,82952.0,82951.0,3e-07]
[1741855046185,0.253203,82937.0,82936.0,0.0203495]
[1741855046391,0.253203,82937.0,82936.0,0.02047446]
[1741855046955,0.553203,82937.0,82936.0,0.02047446]
[1741855047511,0.553203,82937.0,82936.0,0.01906446]
[1741855047915,0.553203,82937.0,82936.0,0.01755446]
[1741855049154,0.553203,82937.0,82936.0,0.00112496]
[1741855049392,0.629103,82937.0,82936.0,0.00112496]
[1741855050229,0.629103,82937.0,82936.0,0.00012496]
[1741855051202,0.629103,82937.0,82936.0,0.00029426]
[1741855051735,0.64799342,82937.0,82936.0,0.00029426]
[1741855052465,0.64999342,82937.0,82936.0,0.00029426]
[1741855052807,0.631103,82937.0,82936.0,0.00029426]
[1741855052946,0.631103,82937.0,82894.0,0.0481]
[1741855052947,0.25544064,82900.0,82894.0,0.0481]
[1741855053152,0.3,82898.0,82894.0,0.0481]
[1741855053351,0.3,82898.0,82895.0,0.241269]
[1741855053549,0.3,82898.0,82895.0,0.253332]
[1741855054159,0.3,82898.0,82894.0,0.0521]
[1741855054354,0.3,82898.0,82894.0,0.05251663]
[1741855054561,0.541262,82898.0,82894.0,0.05251663]
[1741855054764,0.253332,82895.0,82894.0,0.00041663]
[1741855055163,0.3,82899.0,82895.0,0.004]
[1741855055362,0.3,82899.0,82897.0,0.241262]
[1741855055561,0.00212164,82900.0,82899.0,0.012062]
[1741855055764,0.00212164,82900.0,82899.0,0.253319]
[1741855056224,0.00212164,82900.0,82899.0,1.753319]
[1741855056432,0.00212164,82900.0,82899.0,1.881519]
[1741855057573,0.00212164,82900.0,82899.0,1.883519]
[1741855057995,0.00212164,82900.0,82899.0,1.881519]
[1741855058200,0.00212164,82900.0,82899.0,1.886519]
[1741855058764,0.23601103,82910.0,82906.0,0.241236]
[1741855059753,0.253289,82909.0,82903.0,0.241243]
[1741855059985,0.012061,82907.0,82900.0,0.012062]
[1741855060150,0.012061,82907.0,82899.0,0.384519]
[1741855060151,0.553297,82907.0,82906.0,0.001]
[1741855060630,0.012062,82902.0,82895.0,0.012063]
[1741855060750,0.3,82906.0,82899.0,0.241257]
[1741855060958,0.541239,82906.0,82903.0,0.001]
[1741855061215,0.3,82906.0,82903.0,0.001]
[1741855061414,0.3,82906.0,82901.0,0.241249]